fUST/lending_fUST_20250901
["ID","MTS","AMOUNT","RATE_DAILY","PERIOD"]
[382542102,1756661445385,-126.35455954,0.00017524,2]
[382542104,1756661445394,-480.0,0.00017524,2]
[382542106,1756661445404,-1000.0,0.00017524,2]
[382542108,1756661445414,-682.69,0.00017524,2]
[382542110,1756661445424,-785.3,0.00017524,2]
[382542112,1756661445435,-480.0,0.00017524,2]
[382542114,1756661445444,-745.53,0.00017524,2]
[382542116,1756661445454,-338.15050282,0.00017524,2]
[382542119,1756661445470,-322.02949718,0.00017524,2]
[382542121,1756661445480,-480.0,0.00017524,2]
[382542123,1756661445491,-480.0,0.00017524,2]
[382542125,1756661445500,-534.8,0.00017524,2]
[382542127,1756661445510,-480.0,0.00017524,2]
[382542129,1756661445520,-480.0,0.00017524,2]
[382542131,1756661445533,-480.0,0.00017524,2]
[382542133,1756661445544,-480.0,0.00017524,2]
[382542135,1756661445553,-480.0,0.00017524,2]
[382542137,1756661445564,-494.52,0.00017524,2]
[382542139,1756661445574,-345.50890676,0.00017524,2]
[382542141,1756661445586,-134.49109324,0.00017524,2]
[382542143,1756661445596,-417.91483041,0.00017524,2]
[382542385,1756661447942,-217.34433579,0.00017522,2]
[382542424,1756661448468,-49.35340899,0.00016829,2]
[382542426,1756661448480,-2508.87147087,0.00016829,2]
[382542562,1756661450221,5000.0,0.000165,2]
[382542704,1756661471246,5000.0,0.000165,2]
[382542705,1756661493139,5000.0,0.000165,2]
[382542706,1756661515401,5000.0,0.000165,2]
[382542707,1756661521307,1383.16524,0.00016249,2]
[382542708,1756661537465,5000.0,0.000165,2]
[382542709,1756661559657,5000.0,0.000165,2]
[382542710,1756661582166,5000.0,0.000165,2]
[382542711,1756661582514,154.67229778,0.00016336,2]
[382542712,1756661590412,153.582376,0.000249,30]
[382542713,1756661590703,153.582376,0.0002445,30]
[382542714,1756661604327,5000.0,0.000165,2]
[382542715,1756661627019,5000.0,0.000165,2]
[382542716,1756661642215,156.5513715,0.00016353,2]
[382542717,1756661642576,4843.4586285,0.000165,2]
[382542718,1756661646270,-156.5413715,0.000165,2]
[382542719,1756661650317,4471.07241604,0.000165,2]
[382542720,1756661665581,5000.0,0.000165,2]
[382542722,1756661689056,215.85484096,0.000165,2]
[382542723,1756661689079,4784.14515904,0.000165,2]
[382542724,1756661702245,156.55137151,0.00016353,2]
[382542725,1756661711909,5000.0,0.000165,2]
[382542726,1756661719782,59.31346945,0.000165,2]
[382542727,1756661719806,4940.68653055,0.000165,2]
[382542728,1756661735954,5000.0,0.000165,2]
[382542729,1756661757587,59.32346945,0.00015909,2]
[382542730,1756661757610,940.67653055,0.00015909,2]
[382542731,1756661758810,5000.0,0.000165,2]
[382542732,1756661762199,156.5513715,0.00016353,2]
[382542734,1756661764670,971.9173401,0.00016037,2]
[382542735,1756661781814,2930.86475785,0.000165,2]
[382542736,1756661781837,2069.13524215,0.000165,2]
[382542737,1756661789650,5000.0,0.000165,2]
[382542738,1756661805286,2930.87475785,0.000165,2]
[382542739,1756661805308,2069.12524215,0.000165,2]
[382542740,1756661813121,5000.0,0.000165,2]
[382542741,1756661822368,156.55137151,0.00016353,2]
[382542742,1756661830033,2774.33338634,0.000165,2]
[382542743,1756661830055,2225.66661366,0.000165,2]
[382542745,1756661836357,1290.432692,0.00013699,2]
[382542746,1756661852989,5000.0,0.000165,2]
[382542747,1756661868181,1140.91499422,0.00016296,2]
[382542748,1756661868505,208.89315,0.00016313,2]
[382542749,1756661868812,234.937324,0.00016324,2]
[382542750,1756661869121,194.657793,0.00016353,2]
[382542751,1756661869512,208.89315,0.00016383,2]
[382542752,1756661876589,3011.71358878,0.000165,2]
[382542753,1756661876611,1988.28641122,0.000165,2]
[382542754,1756661882282,156.5513715,0.00016353,2]
[382542755,1756661884481,3697.83215813,0.000165,2]
[382542756,1756661891219,280.18,0.00015984,2]
[382542757,1756661899837,3877.16005915,0.000165,2]
[382542758,1756661899861,1122.83994085,0.000165,2]
[382542759,1756661908199,5000.0,0.000165,2]
[382542760,1756661924438,3877.17005915,0.000165,2]
[382542761,1756661924461,1122.82994085,0.000165,2]
[382542762,1756661932487,1302.16784187,0.000165,2]
[382542763,1756661934972,666.0,0.00015881,2]
[382542764,1756661940471,3152.09380735,0.000165,2]
[382542765,1756661942308,156.55137151,0.00016302,2]
[382542766,1756661948514,3600.36703842,0.000165,2]
[382542767,1756661948538,1399.63296158,0.000165,2]
[382542768,1756661970979,5000.0,0.000165,2]
[382542769,1756661979712,3600.37703842,0.000165,2]
[382542770,1756661979734,1399.62296158,0.000165,2]
[382542771,1756661995029,5000.0,0.000165,2]
[382542772,1756662002271,156.5513715,0.00016302,2]
[382542773,1756662002899,3443.83566692,0.000165,2]
[382542774,1756662002923,1556.16433308,0.000165,2]
[382542775,1756662018177,5000.0,0.000165,2]
[382542776,1756662026014,3443.84566692,0.000165,2]
[382542777,1756662026038,1556.15433308,0.000165,2]
[382542778,1756662034634,1945.31176808,0.000165,2]
[382542779,1756662042465,5000.0,0.000165,2]
[382542780,1756662062330,156.55137151,0.00016302,2]
[382542781,1756662065131,1341.99252733,0.000165,2]
[382542782,1756662065154,3658.00747267,0.000165,2]
[382542783,1756662073617,5000.0,0.000165,2]
[382542784,1756662088904,1342.00252733,0.000165,2]
[382542785,1756662088928,3657.99747267,0.000165,2]
[382542786,1756662102141,5000.0,0.000165,2]
[382542787,1756662117810,1342.01252733,0.000165,2]
[382542788,1756662117834,3657.98747267,0.000165,2]
[382542789,1756662122286,156.5513715,0.00016302,2]
[382542790,1756662141398,5000.0,0.000165,2]
[382542791,1756662162212,1185.47115583,0.00015891,2]
[382542792,1756662162236,8814.52884417,0.00015891,2]
[382542793,1756662165151,1185.48115583,0.000165,2]
[382542794,1756662165173,3814.51884417,0.000165,2]
[382542795,1756662181056,151.0,0.00027397,120]
[382542796,1756662195767,5000.0,0.000165,2]
[382542798,1756662212118,1185.49115583,0.000165,2]
[382542799,1756662212142,3814.50884417,0.000165,2]
[382542801,1756662442552,6185.50115583,0.00015884,2]
[382542802,1756662442574,10000.01,0.00015884,2]
[382542803,1756662442597,10000.01,0.00015884,2]
[382542804,1756662442621,10000.01,0.00015884,2]
[382542805,1756662442643,10000.01,0.00015884,2]
[382542806,1756662442669,10000.01,0.00015884,2]
[382542807,1756662442692,10000.01,0.00015884,2]
[382542808,1756662442714,10000.01,0.00015884,2]
[382542809,1756662442737,10000.01,0.00015884,2]
[382542810,1756662442760,10000.01,0.00015884,2]
[382542811,1756662442786,69975.39109087,0.00015884,2]
[382542822,1756662457461,5000.0,0.000165,2]
[382542827,1756662466182,5000.0,0.000165,2]
[382542828,1756662474826,0.01,0.000165,2]
[382542829,1756662474849,2706.25080641,0.000165,2]
[382542830,1756662482694,5000.0,0.000165,2]
[382542831,1756662491246,2293.75919359,0.000165,2]
[382542832,1756662491269,2706.24080641,0.000165,2]
[382542833,1756662506941,5000.0,0.000165,2]
[382542834,1756662515323,2293.76919359,0.000165,2]
[382542835,1756662515348,2706.23080641,0.000165,2]
[382542836,1756662531232,5000.0,0.000165,2]
[382542837,1756662539191,475.08742432,0.000165,2]
[382542838,1756662555132,1818.69176927,0.000165,2]
[382542839,1756662555158,3181.30823073,0.000165,2]
[382542840,1756662563635,5000.0,0.000165,2]
[382542841,1756662573742,691.58262,0.00015862,2]
[382542842,1756662576314,960.0,0.0003089,60]
[382542863,1756662631787,-1200.0,0.00016799,2]
[382542865,1756662631797,-164.0,0.00016799,2]
[382542866,1756662631806,-300.0,0.00016799,2]
[382542868,1756662631816,-1200.0,0.00016799,2]
[382542870,1756662631825,-188.94573784,0.000168,2]
[382542871,1756662631835,-4828.0,0.000168,2]
[382542872,1756662631844,-1387.06452919,0.000168,2]
[382542873,1756662631854,-168.0,0.00016818,2]
[382542874,1756662631863,-480.0,0.00016872,2]
[382542875,1756662631874,-1002.64,0.00016872,2]
[382542876,1756662631883,-480.0,0.00016872,2]
[382542878,1756662631893,-480.0,0.00016872,2]
[382542880,1756662631902,-480.0,0.00016872,2]
[382542882,1756662631912,-480.0,0.00016872,2]
[382542885,1756662631921,-480.0,0.00016872,2]
[382542887,1756662631930,-644.85,0.00016872,2]
[382542889,1756662631939,-423.53794407,0.00016872,2]
[382542891,1756662631948,-510.31,0.00016872,2]
[382542893,1756662631958,-480.0,0.00016872,2]
[382542896,1756662631967,-480.0,0.00016872,2]
[382542899,1756662631976,-480.0,0.00016872,2]
[382542902,1756662631986,-480.0,0.00016872,2]
[382542903,1756662631995,-531.25,0.00016872,2]
[382542905,1756662632005,-480.0,0.00016872,2]
[382542907,1756662632016,-500.0,0.00016872,2]
[382542908,1756662632025,-480.0,0.00016872,2]
[382542909,1756662632035,-545.13,0.00016872,2]
[382542910,1756662632044,-480.0,0.00016872,2]
[382542911,1756662632054,-764.46,0.00016872,2]
[382542912,1756662632063,-480.0,0.00016872,2]
[382542913,1756662632074,-480.0,0.00016872,2]
[382542914,1756662632084,-692.86,0.00016872,2]
[382542915,1756662632094,-584.6426676,0.00016872,2]
[382542916,1756662632104,-480.0,0.00016872,2]
[382542917,1756662632114,-744.98,0.00016872,2]
[382542918,1756662632124,-480.0,0.00016872,2]
[382542919,1756662632133,-480.0,0.00016872,2]
[382542920,1756662632142,-480.0,0.00016872,2]
[382542921,1756662632153,-480.0,0.00016872,2]
[382542922,1756662632162,-845.27,0.00016872,2]
[382542923,1756662632171,-1081.52,0.00016872,2]
[382542924,1756662632181,-764.06,0.00016872,2]
[382542925,1756662632191,-480.0,0.00016872,2]
[382542926,1756662632202,-480.0,0.00016872,2]
[382542927,1756662632212,-480.0,0.00016872,2]
[382542928,1756662632221,-486.9843952,0.00016873,2]
[382542929,1756662632231,-500.0,0.00016873,2]
[382542930,1756662632241,-500.0,0.00016873,2]
[382542931,1756662632251,-500.0,0.00016873,2]
[382542932,1756662632262,-500.0,0.00016873,2]
[382542933,1756662632271,-500.0,0.00016873,2]
[382542934,1756662632280,-500.0,0.00016873,2]
[382542935,1756662632290,-500.0,0.00016873,2]
[382542936,1756662632299,-500.0,0.00016873,2]
[382542937,1756662632309,-504.1131352,0.00016873,2]
[382542938,1756662632319,-501.09309869,0.00016873,2]
[382542939,1756662632328,-500.0,0.00016873,2]
[382542940,1756662632337,-500.0,0.00016873,2]
[382542941,1756662632347,-500.0,0.00016873,2]
[382542942,1756662632356,-500.0,0.00016873,2]
[382542943,1756662632366,-500.0,0.00016873,2]
[382542944,1756662632375,-299.55964499,0.00016873,2]
[382542945,1756662632385,-500.0,0.00016873,2]
[382542946,1756662632394,-500.0,0.00016873,2]
[382542947,1756662632404,-500.0,0.00016873,2]
[382542948,1756662632413,-500.0,0.00016873,2]
[382542949,1756662632423,-158.65713755,0.00016873,2]
[382542950,1756662632433,-500.0,0.00016873,2]
[382542951,1756662632444,-500.0,0.00016873,2]
[382542952,1756662632455,-500.0,0.00016873,2]
[382542953,1756662632465,-502.06332901,0.00016873,2]
[382542954,1756662632475,-500.0,0.00016873,2]
[382542955,1756662632485,-500.0,0.00016873,2]
[382542956,1756662632495,-500.0,0.00016873,2]
[382542957,1756662632505,-500.0,0.00016873,2]
[382542958,1756662632517,-500.0,0.00016873,2]
[382542959,1756662632527,-518.48245204,0.00016873,2]
[382542960,1756662632537,-543.95879641,0.00016873,2]
[382542961,1756662632547,-500.0,0.00016873,2]
[382542962,1756662632556,-500.0,0.00016873,2]
[382542963,1756662632565,-500.0,0.00016873,2]
[382542964,1756662632575,-504.83033594,0.00016873,2]
[382542965,1756662632584,-500.0,0.00016873,2]
[382542966,1756662632594,-160.77188662,0.00016873,2]
[382542967,1756662632604,-500.0,0.00016873,2]
[382542968,1756662632614,-500.0,0.00016873,2]
[382542969,1756662632623,-181.91700237,0.00016873,2]
[382542970,1756662632632,-500.0,0.00016873,2]
[382542971,1756662632642,-500.0,0.00016873,2]
[382542972,1756662632652,-500.0,0.00016873,2]
[382542973,1756662632661,-500.0,0.00016873,2]
[382542974,1756662632671,-500.0,0.00016873,2]
[382542975,1756662632681,-500.0,0.00016873,2]
[382542976,1756662632690,-500.39149769,0.00016873,2]
[382542977,1756662632700,-500.0,0.00016873,2]
[382542978,1756662632709,-1387.06452918,0.00016887,2]
[382542979,1756662632719,-476.97,0.0001689,3]
[382542980,1756662632728,-238.49,0.0001689,3]
[382542981,1756662632738,-715.49,0.0001689,3]
[382542982,1756662632747,-168.0,0.0001689,2]
[382542983,1756662632756,-421.55447545,0.00016898,2]
[382542984,1756662632767,-1055.74,0.00016898,2]
[382542985,1756662632777,-851.79,0.00016898,2]
[382542986,1756662632786,-480.0,0.00016898,2]
[382542987,1756662632795,-582.39,0.00016898,2]
[382542988,1756662632804,-657.71,0.00016898,2]
[382542989,1756662632814,-480.0,0.00016898,2]
[382542990,1756662632823,-480.0,0.00016898,2]
[382542991,1756662632832,-480.0,0.00016898,2]
[382542992,1756662632841,-520.97,0.00016898,2]
[382542993,1756662632851,-480.0,0.00016898,2]
[382542994,1756662632860,-572.9,0.00016898,2]
[382542995,1756662632870,-500.0,0.00016898,2]
[382542996,1756662632879,-480.0,0.00016898,2]
[382542997,1756662632888,-480.0,0.00016898,2]
[382542998,1756662632898,-2048.83,0.00016898,2]
[382542999,1756662632907,-517.05,0.00016898,2]
[382543000,1756662632917,-247.30027718,0.00016898,2]
[382543001,1756662632926,-480.0,0.00016898,2]
[382543002,1756662632935,-480.0,0.00016898,2]
[382543003,1756662632944,-1160.29,0.00016898,2]
[382543004,1756662632954,-1654.59,0.00016898,2]
[382543005,1756662632963,-480.0,0.00016898,2]
[382543006,1756662632973,-1766.05,0.00016898,2]
[382543007,1756662632983,-480.0,0.00016898,2]
[382543008,1756662632992,-673.58,0.00016898,2]
[382543009,1756662633001,-480.0,0.00016898,2]
[382543010,1756662633011,-521.82,0.00016898,2]
[382543011,1756662633019,-480.0,0.00016898,2]
[382543012,1756662633029,-714.41,0.00016898,2]
[382543013,1756662633039,-480.0,0.00016898,2]
[382543014,1756662633049,-697.78,0.00016898,2]
[382543015,1756662633059,-500.0,0.00016899,2]
[382543016,1756662633069,-480.0,0.00016899,2]
[382543017,1756662633078,-560.75,0.00016899,2]
[382543018,1756662633088,-500.7,0.00016899,2]
[382543019,1756662633098,-1535.25,0.00016899,2]
[382543020,1756662633108,-830.21,0.00016899,2]
[382543021,1756662633118,-480.0,0.00016899,2]
[382543022,1756662633127,-1026.66,0.00016899,2]
[382543023,1756662633137,-1061.68,0.00016899,2]
[382543024,1756662633147,-863.59,0.00016899,2]
[382543025,1756662633157,-480.0,0.00016899,2]
[382543026,1756662633167,-480.0,0.00016899,2]
[382543027,1756662633177,-480.0,0.00016899,2]
[382543028,1756662633187,-480.0,0.00016899,2]
[382543029,1756662633197,-577.87,0.00016899,2]
[382543030,1756662633206,-716.35,0.00016899,2]
[382543031,1756662633218,-592.06,0.00016899,2]
[382543032,1756662633227,-480.0,0.00016899,2]
[382543033,1756662633237,-947.86,0.00016899,2]
[382543034,1756662633247,-480.0,0.00016899,2]
[382543035,1756662633257,-552.29,0.00016899,2]
[382543036,1756662633267,-758.47,0.00016899,2]
[382543037,1756662633277,-480.0,0.00016899,2]
[382543038,1756662633287,-988.32,0.00016899,2]
[382543039,1756662633296,-1000.08,0.00016899,2]
[382543040,1756662633306,-480.0,0.00016899,2]
[382543041,1756662633316,-612.9,0.00016899,2]
[382543042,1756662633326,-481.14,0.00016899,2]
[382543043,1756662633336,-982.91,0.00016899,2]
[382543044,1756662633345,-480.0,0.00016899,2]
[382543045,1756662633355,-480.0,0.00016899,2]
[382543046,1756662633365,-480.0,0.00016899,2]
[382543047,1756662633374,-642.73,0.00016899,2]
[382543048,1756662633384,-5625.66,0.00016899,2]
[382543049,1756662633394,-843.32,0.00016899,2]
[382543050,1756662633404,-780.12,0.00016899,2]
[382543051,1756662633414,-480.0,0.00016899,2]
[382543052,1756662633425,-1246.19,0.00016899,2]
[382543053,1756662633435,-930.4,0.00016899,2]
[382543054,1756662633444,-886.04,0.00016899,2]
[382543055,1756662633454,-480.0,0.00016899,2]
[382543056,1756662633463,-487.07,0.00016899,2]
[382543057,1756662633472,-480.0,0.00016899,2]
[382543058,1756662633482,-4502.01,0.00016899,2]
[382543059,1756662633491,-962.0,0.00016899,2]
[382543060,1756662633501,-151.0,0.00016899,2]
[382543061,1756662633511,-151.0,0.00016899,2]
[382543062,1756662633521,-151.0,0.00016899,2]
[382543063,1756662633530,-480.0,0.00016899,2]
[382543064,1756662633540,-480.0,0.00016899,2]
[382543065,1756662633550,-500.0,0.00016899,2]
[382543066,1756662633559,-500.0,0.00016899,2]
[382543067,1756662633569,-151.0,0.00016899,2]
[382543068,1756662633578,-151.0,0.00016899,2]
[382543069,1756662633587,-500.0,0.00016899,2]
[382543070,1756662633597,-500.0,0.00016899,2]
[382543071,1756662633607,-151.0,0.00016899,2]
[382543072,1756662633617,-1206.19,0.00016899,2]
[382543073,1756662633627,-480.0,0.00016899,2]
[382543074,1756662633636,-151.0,0.00016899,2]
[382543075,1756662633648,-500.0,0.00016899,2]
[382543076,1756662633658,-151.0,0.00016899,2]
[382543077,1756662633671,-151.0,0.00016899,2]
[382543078,1756662633680,-500.0,0.00016899,2]
[382543079,1756662633691,-3976.29,0.00016899,2]
[382543080,1756662633701,-151.0,0.00016899,2]
[382543081,1756662633712,-1574.0,0.00016899,2]
[382543082,1756662633722,-863.27,0.00016899,2]
[382543083,1756662633732,-1924.91,0.00016899,2]
[382543084,1756662633742,-869.81,0.00016899,2]
[382543085,1756662633754,-579.42,0.00016899,2]
[382543086,1756662633764,-934.52,0.00016899,2]
[382543087,1756662633774,-480.0,0.00016899,2]
[382543088,1756662633784,-480.0,0.00016899,2]
[382543089,1756662633794,-480.0,0.00016899,2]
[382543090,1756662633803,-500.0,0.00016899,2]
[382543091,1756662633812,-671.36,0.00016899,2]
[382543092,1756662633822,-3808.79,0.00016899,2]
[382543093,1756662633831,-480.0,0.00016899,2]
[382543094,1756662633841,-271.59832505,0.00016899,2]
[382543095,1756662633850,-523.88,0.00016899,2]
[382543096,1756662633860,-480.0,0.00016899,2]
[382543097,1756662633870,-65503.56019463,0.000169,2]
[382543364,1756662639852,-500.0,0.00016872,2]
[382543366,1756662639864,-360.21224915,0.00016872,2]
[382543367,1756662639873,-565.77947364,0.00016872,2]
[382543369,1756662639883,-500.0,0.00016872,2]
[382543371,1756662639892,-227.14085505,0.00016872,2]
[382543373,1756662639902,-500.0,0.00016872,2]
[382543375,1756662639912,-59.36742216,0.00016872,2]
[382543378,1756662639929,-440.63257784,0.00016872,2]
[382543380,1756662639938,-500.0,0.00016872,2]
[382543382,1756662639948,-500.0,0.00016872,2]
[382543384,1756662639958,-500.0,0.00016872,2]
[382543386,1756662639968,-500.0,0.00016872,2]
[382543388,1756662639978,-544.98429117,0.00016872,2]
[382543390,1756662639987,-500.0,0.00016872,2]
[382543392,1756662639996,-500.0,0.00016872,2]
[382543394,1756662640006,-500.0,0.00016872,2]
[382543396,1756662640016,-500.0,0.00016872,2]
[382543398,1756662640025,-500.0,0.00016872,2]
[382543400,1756662640034,-500.0,0.00016872,2]
[382543402,1756662640044,-500.0,0.00016872,2]
[382543404,1756662640053,-500.0,0.00016872,2]
[382543406,1756662640062,-500.0,0.00016872,2]
[382543408,1756662640072,-500.0,0.00016872,2]
[382543410,1756662640082,-500.0,0.00016872,2]
[382543412,1756662640091,-500.0,0.00016872,2]
[382543414,1756662640101,-500.0,0.00016872,2]
[382543416,1756662640110,-500.0,0.00016872,2]
[382543418,1756662640119,-500.0,0.00016872,2]
[382543420,1756662640129,-409.38313098,0.00016872,2]
[382543586,1756662642892,-90.61686902,0.00016872,2]
[382543587,1756662642902,-500.0,0.00016872,2]
[382543588,1756662642912,-500.0,0.00016872,2]
[382543589,1756662642924,-500.0,0.00016872,2]
[382543590,1756662642933,-500.0,0.00016872,2]
[382543591,1756662642944,-500.0,0.00016872,2]
[382543592,1756662642953,-500.0,0.00016872,2]
[382543593,1756662642964,-500.0,0.00016872,2]
[382543594,1756662642973,-500.0,0.00016872,2]
[382543595,1756662642983,-500.0,0.00016872,2]
[382543596,1756662642992,-500.0,0.00016872,2]
[382543597,1756662643002,-234.19392744,0.00016872,2]
[382543598,1756662643012,-500.0,0.00016872,2]
[382543600,1756662643021,-500.0,0.00016872,2]
[382543602,1756662643031,-500.0,0.00016872,2]
[382543604,1756662643040,-500.0,0.00016872,2]
[382543606,1756662643049,-405.14002148,0.00016872,2]
[382543609,1756662643058,-500.0,0.00016872,2]
[382543612,1756662643067,-500.0,0.00016872,2]
[382543614,1756662643076,-500.0,0.00016872,2]
[382543616,1756662643086,-500.0,0.00016872,2]
[382543619,1756662643095,-500.0,0.00016872,2]
[382543621,1756662643105,-374.34833119,0.00016872,2]
[382543623,1756662643114,-480.0,0.00016872,2]
[382543624,1756662643123,-1084.13,0.00016872,2]
[382543625,1756662643132,-853.6,0.00016898,2]
[382543627,1756662643141,-1099.05,0.00016899,2]
[382543630,1756662643150,-1613.13,0.00016899,2]
[382543631,1756662643160,-500.96,0.00016899,2]
[382543634,1756662643169,-90165.83085087,0.000169,2]
[382543636,1756662643181,-1502.8352091,0.000169,2]
[382543640,1756662643192,-212030.17614249,0.000169,2]
[382543643,1756662643202,-151.0,0.000169,2]
[382543645,1756662643212,-168.0,0.00016948,2]
[382543647,1756662643222,-168.0,0.00016957,2]
[382543649,1756662643231,-1387.06452918,0.00016974,2]
[382543650,1756662643240,-2988.10233505,0.00017,2]
[382543652,1756662643250,-151.0,0.00017,2]
[382543653,1756662643259,-1387.06452918,0.0001706,2]
[382543655,1756662643268,-168.0,0.00017081,2]
[382543656,1756662643279,-151.0,0.000171,2]
[382543658,1756662643288,-151.0,0.000171,2]
[382543660,1756662643298,-151.0,0.000171,2]
[382543661,1756662643307,-163.18205561,0.000171,2]
[382543663,1756662643316,-163.18205561,0.000171,2]
[382543664,1756662643325,-480.0,0.00017146,2]
[382543665,1756662643334,-1002.64,0.00017146,2]
[382543666,1756662643343,-480.0,0.00017146,2]
[382543667,1756662643352,-480.0,0.00017146,2]
[382543668,1756662643362,-480.0,0.00017146,2]
[382543669,1756662643372,-480.0,0.00017146,2]
[382543670,1756662643382,-480.0,0.00017146,2]
[382543671,1756662643391,-644.85,0.00017146,2]
[382543672,1756662643400,-510.31,0.00017146,2]
[382543673,1756662643410,-480.0,0.00017146,2]
[382543674,1756662643419,-480.0,0.00017146,2]
[382543675,1756662643429,-480.0,0.00017146,2]
[382543676,1756662643439,-531.25,0.00017146,2]
[382543677,1756662643447,-480.0,0.00017146,2]
[382543678,1756662643457,-480.0,0.00017146,2]
[382543679,1756662643466,-545.13,0.00017146,2]
[382543680,1756662643475,-480.0,0.00017146,2]
[382543681,1756662643484,-764.46,0.00017146,2]
[382543682,1756662643493,-480.0,0.00017146,2]
[382543683,1756662643503,-480.0,0.00017146,2]
[382543684,1756662643512,-692.86,0.00017146,2]
[382543685,1756662643523,-480.0,0.00017146,2]
[382543686,1756662643534,-744.98,0.00017146,2]
[382543687,1756662643543,-480.0,0.00017146,2]
[382543688,1756662643553,-480.0,0.00017146,2]
[382543689,1756662643562,-480.0,0.00017146,2]
[382543690,1756662643571,-480.0,0.00017146,2]
[382543691,1756662643580,-845.27,0.00017146,2]
[382543692,1756662643589,-1081.52,0.00017146,2]
[382543693,1756662643598,-764.06,0.00017146,2]
[382543694,1756662643608,-480.0,0.00017146,2]
[382543695,1756662643617,-480.0,0.00017146,2]
[382543696,1756662643627,-480.0,0.00017146,2]
[382543697,1756662643636,-1084.13,0.00017146,2]
[382543698,1756662643645,-1387.06452918,0.00017147,2]
[382543699,1756662643654,-480.0,0.00017172,2]
[382543700,1756662643664,-582.39,0.00017172,2]
[382543701,1756662643676,-657.71,0.00017172,2]
[382543702,1756662643686,-480.0,0.00017172,2]
[382543703,1756662643695,-480.0,0.00017172,2]
[382543704,1756662643704,-480.0,0.00017172,2]
[382543705,1756662643714,-520.97,0.00017172,2]
[382543706,1756662643725,-577.04675816,0.00017172,2]
[382543707,1756662643734,-572.9,0.00017172,2]
[382543708,1756662643744,-480.0,0.00017172,2]
[382543709,1756662643754,-480.0,0.00017172,2]
[382543710,1756662643763,-2048.83,0.00017172,2]
[382543711,1756662643775,-517.05,0.00017172,2]
[382543712,1756662643784,-480.0,0.00017172,2]
[382543713,1756662643793,-480.0,0.00017172,2]
[382543714,1756662643802,-1160.29,0.00017172,2]
[382543715,1756662643811,-1654.59,0.00017172,2]
[382543716,1756662643821,-480.0,0.00017172,2]
[382543717,1756662643830,-1766.05,0.00017172,2]
[382543718,1756662643841,-480.0,0.00017172,2]
[382543719,1756662643850,-673.58,0.00017172,2]
[382543720,1756662643860,-521.82,0.00017172,2]
[382543721,1756662643869,-480.0,0.00017172,2]
[382543722,1756662643879,-714.41,0.00017172,2]
[382543723,1756662643888,-480.0,0.00017172,2]
[382543724,1756662643897,-697.78,0.00017172,2]
[382543725,1756662643906,-853.6,0.00017172,2]
[382543726,1756662643916,-500.0,0.00017173,2]
[382543727,1756662643925,-198.0,0.00017173,2]
[382543728,1756662643934,-198.0,0.00017173,2]
[382543729,1756662643944,-151.0,0.00017173,2]